bitfinex-derivatives/quotes_SOLF0:USTF0_20250216
["timestamp","ask_amount","ask_price","bid_price","bid_amount"]
[1739733844570,5.3258,187.74,187.71,0.03564813]
[1739733845071,5.3263,187.72,187.71,0.03564813]
[1739733847069,0.03855879,187.76,187.71,0.03564813]
[1739733848171,5.36395879,187.76,187.71,0.03564813]
[1739733848673,0.03855879,187.76,187.71,0.03564813]
[1739733850371,5.36375879,187.76,187.71,0.03564813]
[1739733850575,0.03855879,187.76,187.71,0.03564813]
[1739733852072,0.03855879,187.76,187.71,13.78829333]
[1739733852272,0.03855879,187.76,187.71,0.03564813]
[1739733852469,0.03855879,187.76,187.71,5.36214813]
[1739733852674,0.03855879,187.76,187.71,0.03564813]
[1739733853472,5.3255,187.75,187.71,0.03564813]
[1739733853675,0.03855879,187.76,187.71,0.03564813]
[1739733854474,5.3254,187.75,187.71,5.36214813]
[1739733854673,0.03855879,187.76,187.71,5.36214813]
[1739733854977,0.03855879,187.76,187.71,13.78829333]
[1739733855166,0.03855879,187.76,187.75,5.3254]
[1739733859875,13.7526452,187.86,187.74,13.7526452]
[1739733860081,3.2457,187.88,187.74,15.3369452]
[1739733860481,5.3228,187.85,187.79,5.3241]
[1739733860682,3.2457,187.88,187.77,13.7526452]
[1739733861082,0.03626049,187.84,187.81,0.03686954]
[1739733862081,0.03626049,187.84,187.82,5.3233]
[1739733862381,0.03626049,187.84,187.81,0.03686954]
[1739733863172,0.03626049,187.84,187.83,5.3231]
[1739733863684,3.3369,187.94,187.81,0.03686954]
[1739733863879,3.3369,187.94,187.85,5.3224]
[1739733863880,5.3209,187.91,187.85,5.3224]
[1739733864081,3.3369,187.94,187.83,13.7526452]
[1739733864283,1.5546,187.97,187.83,13.7526452]
[1739733864584,1.5546,187.97,187.86,13.7526452]
[1739733864881,0.03496525,187.93,187.9,0.03800789]
[1739733868685,0.03496525,187.93,187.9,5.35910789]
[1739733869391,0.03496525,187.93,187.9,0.03800789]
[1739733869586,0.03496525,187.93,187.91,5.3206]
[1739733869888,0.03496525,187.93,187.9,0.03800789]
[1739733870084,0.03496525,187.93,187.91,5.3206]
[1739733870282,0.03496525,187.93,187.9,0.03800789]
[1739733870484,0.03496525,187.93,187.9,1.61580789]
[1739733871688,0.03496525,187.93,187.9,6.93670789]
[1739733872693,0.03496525,187.93,187.92,5.3206]
[1739733878694,0.03496525,187.93,187.9,0.03800789]
[1739733878695,0.03496525,187.93,187.9,5.35890789]
[1739733879296,0.03496525,187.93,187.9,0.03800789]
[1739733879497,0.03496525,187.93,187.92,5.3206]
[1739733880690,13.7526452,188.04,187.92,5.3206]
[1739733880899,13.7526452,188.04,187.9,0.03800789]
[1739733880900,3.2499,188.03,187.89,13.7526452]
[1739733881400,5.3185,188.0,187.94,5.3198]
[1739733881602,3.2499,188.03,187.92,13.7526452]
[1739733881998,0.03860145,187.99,187.96,5.35595466]
[1739733882598,0.03860145,187.99,187.96,0.03665466]
[1739733883302,0.03860145,187.99,187.96,5.35605466]
[1739733884806,0.03860145,187.99,187.97,5.3189]
[1739733885006,0.03860145,187.99,187.97,8.80085569]
[1739733886208,0.03860145,187.99,187.98,5.3189]
[1739733886907,0.03860145,187.99,187.97,8.80085569]
[1739733887908,0.03860145,187.99,187.96,0.03665466]
[1739733888107,8.83945714,187.99,187.96,0.03665466]
[1739733888313,8.80085569,187.97,187.96,0.03665466]
[1739733888607,8.83945714,187.99,187.96,0.03665466]
[1739733889203,5.3189,187.98,187.96,0.03665466]
[1739733889401,0.03860145,187.99,187.96,0.03665466]
[1739733890905,5.35740145,187.99,187.96,0.03665466]
[1739733891210,0.03860145,187.99,187.96,0.03665466]
[1739733893413,0.03860145,187.99,187.96,5.35605466]
[1739733893611,0.03860145,187.99,187.96,0.03665466]
[1739733893910,0.03860145,187.99,187.97,8.80085569]
[1739733894510,0.03860145,187.99,187.98,5.3189]
[1739733896207,0.03860145,187.99,187.97,8.80085569]
[1739733897014,0.03860145,187.99,187.96,0.03665466]
[1739733897915,5.35740145,187.99,187.96,0.03665466]
[1739733898214,0.03860145,187.99,187.96,0.03665466]
[1739733898512,5.3192,187.97,187.96,0.03665466]
[1739733898716,8.80085569,187.97,187.91,8.80085569]
[1739733899812,5.3195,187.96,187.92,0.03388646]
[1739733900507,8.80085569,187.97,187.92,0.03388646]
[1739733900807,0.03860145,187.99,187.92,0.03388646]
[1739733901417,5.3194,187.97,187.92,0.03388646]
[1739733902214,5.319,187.98,187.92,5.35438646]
[1739733902409,0.03860145,187.99,187.92,5.35438646]
[1739733902814,5.35740145,187.99,187.93,5.3201]
[1739733903013,0.03860145,187.99,187.92,0.03388646]
[1739733903416,0.03860145,187.99,187.95,5.3197]
[1739733904319,0.03860145,187.99,187.93,13.7604415]
[1739733905023,0.03860145,187.99,187.96,13.7604415]
[1739733905423,0.03860145,187.99,187.97,5.3191]
[1739733908622,0.03860145,187.99,187.96,19.1173845]
[1739733908820,0.03860145,187.99,187.96,13.7980845]
[1739733909223,0.03860145,187.99,187.97,5.3192]
[1739733912528,281.42607724,188.15,187.96,13.7980845]
[1739733912727,18.5478415,188.13,187.99,13.7604415]
[1739733913124,5.3164,188.07,188.02,5.3176]
[1739733913618,18.5478415,188.13,188.02,5.3176]
[1739733913825,0.03819241,188.06,188.03,5.35393557]
[1739733914018,5.316,188.09,188.03,0.03643557]
[1739733914219,0.03594114,188.06,188.03,0.03643557]
[1739733914427,0.03594114,188.06,188.03,5.35383557]
[1739733914831,0.03594114,188.06,188.03,0.03643557]
[1739733915528,0.03594114,188.06,188.04,5.3172]
[1739733917028,0.03594114,188.06,188.05,5.3169]
[1739733917225,0.03594114,188.06,188.03,0.03643557]
[1739733918728,0.03594114,188.06,188.05,5.3169]
[1739733919426,0.03594114,188.06,188.04,5.3172]
[1739733919624,0.03594114,188.06,188.03,0.03643557]
[1739733920824,0.03594114,188.06,188.05,13.7604415]
[1739733921534,6.8848,188.13,188.05,13.7604415]
[1739733921727,3.3386,188.18,188.08,13.7604415]
[1739733922029,8.6521,188.18,188.08,13.7604415]
[1739733922235,3.3386,188.18,188.08,13.7604415]
[1739733922428,1.7131,188.2,188.11,13.7604415]
[1739733922733,0.03710976,188.17,188.15,8.78288306]
[1739733924730,0.03710976,188.17,188.14,0.03776488]
[1739733925127,58.15938126,188.23,188.15,13.72332086]
[1739733925333,58.15938126,188.23,188.18,13.72332086]
[1739733925630,4.9184,188.3,188.18,19.03652086]
[1739733926129,4.9184,188.3,188.18,13.72332086]
[1739733926434,5.3118,188.23,188.22,9.48e-06]
[1739733928532,5.3118,188.23,188.12,13.72332086]
[1739733928533,13.72332086,188.25,188.09,133.02332086]
[1739733928731,5.3146,188.14,188.09,133.02332086]
[1739733929836,0.03788537,188.13,188.1,0.04009415]
[1739733932036,0.03788537,188.13,188.12,13.72332086]
[1739733932233,4.9296,188.22,188.14,5.3143]
[1739733933040,4.9296,188.22,188.15,5.3139]
[1739733933241,4.9296,188.22,188.12,13.72332086]
[1739733933442,0.0337645,188.2,188.17,0.03513452]
[1739733935042,5.3466645,188.2,188.17,0.03513452]
[1739733935947,0.0337645,188.2,188.17,0.03513452]
[1739733938348,5.3132,188.18,188.17,0.03513452]
[1739733938538,0.0337645,188.2,188.09,133.02332086]
[1739733938744,13.72332086,188.22,188.09,133.02332086]
[1739733939042,5.3135,188.17,188.11,5.3151]
[1739733939242,5.3135,188.17,188.09,133.02332086]
[1739733939639,13.72332086,188.25,188.12,13.72332086]
[1739733939849,0.03520806,188.15,188.12,13.72332086]
[1739733940143,0.03539881,188.15,188.12,13.76299125]
[1739733941146,0.03539881,188.15,188.12,0.03967039]
[1739733943545,0.03539881,188.15,188.14,5.3144]
[1739733944145,0.03539881,188.15,188.12,13.76299125]
[1739733944449,0.03539881,188.15,188.12,19.07769125]
[1739733944846,0.03539881,188.15,188.12,13.76299125]
[1739733946852,0.03539881,188.15,188.13,5.3144]
[1739733947354,0.03539881,188.15,188.12,13.76299125]
[1739733947551,0.03539881,188.15,188.13,5.3144]
[1739733948454,0.03539881,188.15,188.12,19.07789125]
[1739733948954,0.03539881,188.15,188.12,13.76299125]
[1739733949649,0.03539881,188.15,188.13,5.3147]
[1739733952248,0.03539881,188.15,188.12,13.76299125]
[1739733952249,0.03539881,188.15,188.14,5.3144]
[1739733952453,0.03539881,188.15,188.12,13.76299125]
[1739733952658,0.03539881,188.15,188.14,8.78377589]
[1739733955055,0.03539881,188.15,188.14,14.09817589]
[1739733958557,0.03539881,188.15,188.14,8.78377589]
[1739733962068,0.03539881,188.15,188.12,8.82344628]
[1739733962368,5.3146,188.14,188.12,0.03967039]
[1739733962764,0.03539881,188.15,188.12,0.03967039]
[1739733963060,5.34969881,188.15,188.12,0.03967039]
[1739733963669,0.03539881,188.15,188.13,5.3147]
[1739733963869,0.03539881,188.15,188.14,8.78377589]
[1739733966270,0.03539881,188.15,188.14,14.09817589]
[1739733967068,8.78377589,188.24,188.16,5.3137]
[1739733967372,8.78377589,188.24,188.18,8.78377589]
[1739733967570,5.3122,188.22,188.18,8.78377589]
[1739733968262,5.35111345,188.22,188.18,8.82179465]
[1739733968463,0.03891345,188.22,188.18,8.82179465]
[1739733969171,0.03891345,188.22,188.18,14.13499465]
[1739733969578,0.03891345,188.22,188.2,8.78377589]
[1739733970167,0.03891345,188.22,188.21,5.3124]
[1739733971571,0.03891345,188.22,188.2,14.09637589]
[1739733971772,0.03891345,188.22,188.2,8.78377589]
[1739733971967,0.03891345,188.22,188.18,0.03801876]
[1739733971968,0.03891345,188.22,188.18,8.82179465]
[1739733972672,0.03891345,188.22,188.18,14.13499465]
[1739733973377,0.03891345,188.22,188.2,8.78377589]
[1739733977281,0.03891345,188.22,188.21,5.3124]
[1739733980381,0.03891345,188.22,188.2,8.78377589]
[1739733981379,0.03891345,188.22,188.21,5.3124]
[1739733988385,8.586,188.3,188.2,8.78377589]
[1739733988687,1.6127,188.3,188.26,8.78377589]
[1739733989181,10.33657589,188.32,188.26,14.09467589]
[1739733989383,5.3096,188.32,188.28,8.78377589]
[1739733989586,0.03656129,188.31,188.28,8.78377589]
[1739733989990,0.03656129,188.31,188.3,8.78377589]
[1739733993496,0.03656129,188.31,188.28,8.78377589]
[1739733994096,0.03656129,188.31,188.3,8.78377589]
[1739733999698,0.03656129,188.31,188.28,8.78377589]
[1739734000095,5.34616129,188.31,188.28,8.78377589]
[1739734000598,5.34616129,188.31,188.27,0.04024268]
[1739734000599,0.03656129,188.31,188.27,0.04024268]
[1739734002399,5.3104,188.28,188.27,0.04024268]
[1739734003599,0.03656129,188.31,188.27,0.04024268]
[1739734004690,0.03656129,188.31,188.3,8.78377589]
[1739734005100,0.03656129,188.31,188.28,5.3104]
[1739734005101,0.03656129,188.31,188.28,8.78377589]
[1739734005501,5.34626129,188.31,188.27,0.04024268]
[1739734005896,5.3099,188.3,188.27,0.04024268]
[1739734006098,0.03656129,188.31,188.27,0.04024268]
[1739734007101,5.3102,188.29,188.27,0.04024268]
[1739734007302,0.03656129,188.31,188.27,0.04024268]
[1739734007303,8.78377589,188.3,188.27,0.04024268]
[1739734007602,11.99977589,188.3,188.27,0.04024268]
[1739734008297,3.216,188.3,188.27,0.04024268]
[1739734008901,0.03656129,188.31,188.28,8.78377589]
[1739734010401,5.34616129,188.31,188.28,8.78377589]
[1739734011005,5.3099,188.3,188.28,8.78377589]
[1739734012400,5.34636129,188.31,188.28,8.78377589]
[1739734013003,5.31,188.3,188.28,8.78377589]
[1739734013409,0.03656129,188.31,188.28,8.78377589]
[1739734013609,0.03656129,188.31,188.3,8.78377589]
[1739734016513,0.03656129,188.31,188.3,14.09367589]
[1739734017208,0.03656129,188.31,188.3,8.78377589]
[1739734018212,0.03656129,188.31,188.28,8.78377589]
[1739734018711,5.31,188.3,188.28,8.78377589]
[1739734020617,5.3104,188.28,188.27,0.04024268]
[1739734030922,1.5559,188.29,188.27,0.04024268]
[1739734031219,6.8661,188.29,188.27,0.04024268]
[1739734032619,5.3104,188.28,188.27,0.04024268]
[1739734032818,8.78377589,188.3,188.27,0.04024268]
[1739734033020,0.03656129,188.31,188.27,0.04024268]
[1739734033416,5.3101,188.3,188.27,0.04024268]
[1739734033716,0.03656129,188.31,188.27,0.04024268]
[1739734034016,5.3104,188.29,188.27,0.04024268]
[1739734034822,5.3104,188.28,188.27,0.04024268]
[1739734037825,5.3102,188.29,188.27,0.04024268]
[1739734039423,0.03656129,188.31,188.27,0.04024268]
[1739734039424,5.3104,188.28,188.27,0.04024268]
[1739734043325,0.03656129,188.31,188.27,0.04024268]
[1739734043526,5.3102,188.29,188.27,0.04024268]
[1739734044221,0.03656129,188.31,188.27,0.04024268]
[1739734044524,5.3104,188.28,188.27,0.04024268]
[1739734044724,0.03656129,188.31,188.27,0.04024268]
[1739734045216,5.3104,188.28,188.27,0.04024268]
[1739734048028,5.34626129,188.31,188.27,0.04024268]
[1739734049929,5.3099,188.3,188.27,0.04024268]
[1739734053131,5.34616129,188.31,188.27,0.04024268]
[1739734054027,0.03656129,188.31,188.27,0.04024268]
[1739734054233,0.03656129,188.31,188.27,5.35094268]
[1739734054533,0.03656129,188.31,188.28,8.78377589]
[1739734054928,0.03656129,188.31,188.29,5.3101]
[1739734055523,0.03656129,188.31,188.28,8.78377589]
[1739734055729,0.03656129,188.31,188.27,5.35074268]
[1739734056035,0.03656129,188.31,188.27,0.04024268]
[1739734056830,0.03656129,188.31,188.28,5.3102]
[1739734058434,0.03656129,188.31,188.27,0.04024268]
[1739734058734,0.03656129,188.31,188.27,5.35084268]
[1739734059134,0.03656129,188.31,188.3,5.3099]
[1739734060233,58.15938126,188.42,188.36,5.3081]
[1739734060533,58.15938126,188.42,188.36,8.78377589]
[1739734060728,66.94315715,188.42,188.36,8.78377589]
[1739734060929,8.78377589,188.4,188.32,8.78377589]
[1739734061125,5.3074,188.39,188.32,8.78377589]
[1739734061329,0.04029093,188.38,188.34,0.03735639]
[1739734062234,0.04029093,188.38,188.34,14.12983228]
[1739734063229,0.04029093,188.38,188.36,8.78377589]
[1739734064436,0.04029093,188.38,188.36,14.09167589]
[1739734066829,0.04029093,188.38,188.37,5.3079]
[1739734070036,8.78377589,188.46,188.36,8.78377589]
[1739734070340,156.31612873,188.55,188.41,8.78377589]
[1739734070341,8.78377589,188.48,188.41,8.78377589]
[1739734070838,5.3061,188.44,188.41,8.78377589]
[1739734071340,5.34198385,188.44,188.41,8.82347664]
[1739734073838,5.3063,188.43,188.41,8.82347664]
[1739734076348,5.34178385,188.44,188.41,8.82347664]
[1739734076945,0.03588385,188.44,188.41,8.82347664]
[1739734077147,5.3062,188.43,188.41,8.82347664]
[1739734077741,5.3065,188.42,188.41,0.03970075]
[1739734078847,14.09027589,188.42,188.41,0.03970075]
[1739734080338,5.3065,188.42,188.41,0.03970075]
[1739734080645,8.81965974,188.44,188.41,0.03970075]
[1739734080847,5.3065,188.42,188.41,0.03970075]
[1739734083843,0.03588385,188.44,188.41,8.82347664]
[1739734083844,5.34188385,188.44,188.41,8.82347664]
[1739734086942,5.3062,188.43,188.41,8.82347664]
[1739734089751,0.03588385,188.44,188.41,8.82347664]
[1739734089945,5.34188385,188.44,188.41,8.82347664]
[1739734090749,5.3062,188.43,188.41,8.82347664]
[1739734091555,0.03588385,188.44,188.41,8.82347664]
[1739734092857,5.3062,188.43,188.41,8.82347664]
[1739734093454,0.03588385,188.44,188.41,8.82347664]
[1739734093666,5.3065,188.42,188.41,0.03970075]
[1739734098955,0.03588385,188.44,188.41,0.03970075]
[1739734099163,5.3062,188.43,188.41,0.03970075]
[1739734101665,5.34178385,188.44,188.41,0.03970075]
[1739734101864,0.03588385,188.44,188.41,8.82347664]
[1739734103665,5.34198385,188.44,188.41,8.82347664]
[1739734104362,0.03588385,188.44,188.41,0.03970075]
[1739734104962,5.3064,188.43,188.41,0.03970075]
[1739734105964,5.3065,188.42,188.41,0.03970075]
[1739734110567,5.3064,188.43,188.41,0.03970075]
[1739734112870,0.03588385,188.44,188.41,0.03970075]
[1739734113172,5.3065,188.42,188.41,0.03970075]
[1739734113671,14.09027589,188.42,188.41,0.03970075]
[1739734114269,5.3064,188.43,188.41,0.03970075]
[1739734114469,0.03588385,188.44,188.41,0.03970075]
[1739734115068,5.3064,188.43,188.41,0.03970075]
[1739734115269,0.03588385,188.44,188.41,0.03970075]
[1739734115678,5.3065,188.42,188.41,0.03970075]
[1739734115870,0.03588385,188.44,188.41,0.03970075]
[1739734116574,5.3062,188.43,188.41,0.03970075]
[1739734122981,0.03588385,188.44,188.41,0.03970075]
[1739734123182,5.34188385,188.44,188.41,0.03970075]
[1739734123384,0.03588385,188.44,188.41,8.82347664]
[1739734124589,5.34198385,188.44,188.41,8.82347664]
[1739734124785,0.03588385,188.44,188.41,8.82347664]
[1739734125887,5.34188385,188.44,188.41,8.82347664]
[1739734130993,5.34188385,188.44,188.41,14.13017664]
[1739734131591,0.03588385,188.44,188.41,14.13017664]
[1739734131791,0.03588385,188.44,188.41,8.82347664]
[1739734131992,5.34198385,188.44,188.41,8.82347664]
[1739734133297,5.3064,188.43,188.41,8.82347664]
[1739734133592,5.3064,188.43,188.41,0.03970075]
[1739734135293,0.03588385,188.44,188.41,0.03970075]
[1739734135594,5.34188385,188.44,188.41,0.03970075]
[1739734136192,0.03588385,188.44,188.41,0.03970075]
[1739734136393,5.3062,188.43,188.41,0.03970075]
[1739734137092,0.03588385,188.44,188.41,0.03970075]
[1739734137295,5.3065,188.42,188.41,0.03970075]
[1739734137594,0.03588385,188.44,188.41,0.03970075]
[1739734139085,5.34178385,188.44,188.41,0.03970075]
[1739734140291,0.03588385,188.44,188.41,0.03970075]
[1739734140797,5.34198385,188.44,188.41,0.03970075]
[1739734140992,0.03588385,188.44,188.41,0.03970075]
[1739734141595,5.3063,188.43,188.41,0.03970075]
[1739734141797,0.03588385,188.44,188.41,0.03970075]
[1739734142395,5.34208385,188.44,188.41,0.03970075]
[1739734142795,5.3062,188.43,188.41,0.03970075]
[1739734143295,0.03588385,188.44,188.41,0.03970075]
[1739734144396,5.3065,188.42,188.41,0.03970075]
[1739734145198,5.3063,188.43,188.41,0.03970075]
[1739734145793,5.3065,188.42,188.41,0.03970075]
[1739734150302,5.3063,188.43,188.41,0.03970075]
[1739734152599,5.3065,188.42,188.41,0.03970075]
[1739734155809,0.03588385,188.44,188.41,0.03970075]
[1739734156009,5.3065,188.42,188.41,0.03970075]
[1739734159803,5.3078,188.38,188.35,8.78377589]
[1739734160506,5.3081,188.37,188.33,8.78377589]
[1739734160708,8.78377589,188.39,188.33,8.78377589]
[1739734161114,0.03939527,188.38,188.34,0.03435736]
[1739734162206,5.3084,188.36,188.34,0.03435736]
[1739734162411,0.03939527,188.38,188.34,0.03435736]
[1739734163007,8.78377589,188.35,188.34,0.03435736]
[1739734163212,8.78377589,188.35,188.27,127.86377589]
[1739734163213,8.78377589,188.35,188.27,8.78377589]
[1739734163412,8.78377589,188.33,188.27,8.78377589]
[1739734164016,8.78377589,188.33,188.25,8.78377589]
[1739734164517,0.03834022,188.31,188.27,0.03638385]
[1739734164724,8.82211611,188.31,188.27,0.03638385]
[1739734164911,5.3105,188.28,188.27,0.03638385]
[1739734166308,8.78377589,188.29,188.21,8.78377589]
[1739734166511,8.78377589,188.27,188.19,8.78377589]
[1739734167417,8.78377589,188.27,188.19,14.09667589]
[1739734167716,0.0343009,188.25,188.21,0.03842757]
[1739734168518,0.0343009,188.25,188.21,8.82220346]
[1739734170113,5.3456009,188.25,188.21,8.82220346]
[1739734172122,0.0343009,188.25,188.21,8.82220346]
[1739734173621,5.3116,188.24,188.21,0.03842757]
[1739734173822,8.78377589,188.23,188.21,0.03842757]
[1739734174023,0.0343009,188.25,188.21,0.03842757]
[1739734174024,8.81807679,188.25,188.21,0.03842757]
[1739734174425,5.3121,188.22,188.21,0.03842757]
[1739734179224,8.81807679,188.25,188.21,0.03842757]
[1739734180129,5.3118,188.24,188.21,0.03842757]
[1739734181128,0.0343009,188.25,188.22,8.78377589]
[1739734181331,0.0343009,188.25,188.24,8.78377589]
[1739734184833,0.0343009,188.25,188.24,14.09537589]
[1739734185529,0.0343009,188.25,188.24,8.78377589]
[1739734186630,0.0343009,188.25,188.22,8.78377589]
[1739734188329,0.0343009,188.25,188.22,14.09587589]
[1739734188534,0.0343009,188.25,188.24,8.78377589]
[1739734189132,0.0343009,188.25,188.24,14.09527589]
[1739734196536,0.0343009,188.25,188.24,8.78377589]
[1739734198332,0.0343009,188.25,188.22,8.78377589]
[1739734200636,0.0343009,188.25,188.24,8.78377589]
[1739734202540,0.0343009,188.25,188.22,8.78377589]
[1739734203235,0.0343009,188.25,188.22,14.09587589]
[1739734203440,0.0343009,188.25,188.22,8.78377589]
[1739734203839,0.0343009,188.25,188.22,14.09577589]
[1739734204134,0.0343009,188.25,188.22,8.78377589]
[1739734204343,5.3456009,188.25,188.22,8.78377589]
[1739734204735,5.3121,188.23,188.21,0.03842757]
[1739734204940,8.78377589,188.23,188.21,0.03842757]
[1739734205340,5.3134,188.18,188.14,8.78377589]
[1739734205741,8.78377589,188.2,188.14,8.78377589]
[1739734205940,5.3138,188.17,188.12,8.78377589]
[1739734206341,8.78377589,188.2,188.12,8.78377589]
[1739734206542,0.03845079,188.16,188.13,0.03657988]
[1739734206742,0.03845079,188.16,188.14,8.78377589]
[1739734207643,0.03845079,188.16,188.13,0.03657988]
[1739734208844,5.3143,188.15,188.13,0.03657988]
[1739734209548,14.13612668,188.16,188.13,0.03657988]
[1739734209942,8.82222668,188.16,188.13,0.03657988]
[1739734210240,5.3141,188.15,188.13,0.03657988]
[1739734211846,5.35225079,188.16,188.13,0.03657988]
[1739734212042,0.03845079,188.16,188.14,8.78377589]
[1739734212441,5.3119,188.23,188.18,5.3132]
[1739734212642,5.3119,188.23,188.19,8.78377589]
[1739734213339,5.3115,188.25,188.19,8.78377589]
[1739734213542,10.39297589,188.28,188.21,8.78377589]
[1739734213741,0.03611203,188.24,188.21,8.78377589]
[1739734214647,0.03611203,188.24,188.21,14.09617589]
[1739734214946,0.03611203,188.24,188.23,8.78377589]
[1739734217149,0.03611203,188.24,188.23,14.09557589]
[1739734217348,0.03611203,188.24,188.23,8.78377589]
[1739734222345,0.03611203,188.24,188.23,14.09557589]
[1739734223248,0.03611203,188.24,188.23,8.78377589]
[1739734224746,5.3121,188.22,188.21,8.78377589]
[1739734224949,0.03611203,188.24,188.2,0.03448115]
[1739734225150,8.81988792,188.24,188.2,0.03448115]
[1739734225947,5.3124,188.21,188.2,0.03448115]
[1739734226646,5.3135,188.18,188.15,8.78377589]
[1739734227747,5.34988745,188.18,188.15,8.81758147]
[1739734227945,0.03638745,188.18,188.17,8.78377589]
[1739734228149,1.6998,188.25,188.17,8.78377589]
[1739734228352,5.3115,188.25,188.22,8.78377589]
[1739734228553,202.78377589,188.31,188.24,8.78377589]
[1739734228755,194.0,188.31,188.26,8.78377589]
[1739734229455,0.03579041,188.3,188.28,8.78377589]
[1739734229655,194.0,188.31,188.28,8.78377589]
[1739734230048,194.038181,188.31,188.28,8.78377589]
[1739734230248,199.347781,188.31,188.28,8.78377589]
[1739734230753,199.347781,188.31,188.27,0.0357026]
[1739734232548,0.038181,188.31,188.27,0.0357026]
[1739734232754,0.038181,188.31,188.28,13.70560184]
[1739734233054,0.038181,188.31,188.28,19.01580184]
[1739734233854,0.038181,188.31,188.28,13.70560184]
[1739734236160,5.347781,188.31,188.28,13.70560184]
[1739734236459,0.038181,188.31,188.28,13.70560184]
[1739734236857,0.038181,188.31,188.28,19.01600184]
[1739734238059,0.038181,188.31,188.28,13.70560184]
[1739734239754,0.038181,188.31,188.28,19.01600184]
[1739734239957,0.038181,188.31,188.28,13.70560184]
[1739734240964,5.347781,188.31,188.28,13.70560184]
[1739734241266,0.038181,188.31,188.27,0.0357026]
[1739734243266,0.038181,188.31,188.28,5.3103]
[1739734243467,0.038181,188.31,188.28,19.01590184]
[1739734245273,0.038181,188.31,188.3,5.3099]
[1739734246064,0.038181,188.31,188.28,15.29690184]
[1739734246870,0.038181,188.31,188.27,5.3463026]
[1739734247767,0.038181,188.31,188.27,0.0357026]
[1739734248168,5.3104,188.28,188.27,0.0357026]
[1739734248965,3.341381,188.31,188.27,0.0357026]
[1739734249263,1.727781,188.31,188.27,0.0357026]
[1739734249470,0.038181,188.31,188.27,0.0357026]
[1739734252870,0.038181,188.31,188.28,19.01580184]
[1739734253068,0.038181,188.31,188.28,13.70560184]
[1739734253774,0.038181,188.31,188.27,0.0357026]
[1739734254973,5.347981,188.31,188.27,0.0357026]
[1739734255174,0.038181,188.31,188.27,0.0357026]
[1739734256575,0.038181,188.31,188.3,8.76922562]
[1739734258871,8.76922562,188.42,188.3,8.76922562]
[1739734259173,63.46578126,188.43,188.37,8.76922562]
[1739734259577,58.15938126,188.43,188.37,8.76922562]
[1739734259772,58.15938126,188.43,188.35,8.76922562]
[1739734259968,8.76922562,188.4,188.33,8.76922562]
[1739734260174,8.76922562,188.4,188.37,0.03828803]
[1739734260475,5.3072,188.4,188.37,8.76922562]
[1739734260774,5.3072,188.4,188.28,3.2135]
[1739734260775,5.3072,188.4,188.33,13.69354965]
[1739734261373,5.3072,188.4,188.33,19.00254965]
[1739734261572,0.0340239,188.38,188.35,0.03879616]
[1739734261769,256.84618126,188.45,188.36,5.3079]
[1739734261973,0.03996787,188.38,188.35,0.03879616]
[1739734262174,256.84618126,188.45,188.36,13.69354965]
[1739734262370,0.03996381,188.38,188.36,13.69354965]
[1739734262574,256.84618126,188.45,188.36,13.69354965]
[1739734262775,0.04062097,188.39,188.36,13.69354965]
[1739734262975,0.04062097,188.39,188.38,5.3076]
[1739734263581,0.04062097,188.39,188.36,19.00144965]
[1739734264079,0.04062097,188.39,188.36,13.69354965]
[1739734265079,2.097e-05,188.39,188.38,5.3076]
[1739734265683,89.08917724,188.5,188.43,5.3061]
[1739734265684,1.6631,188.5,188.43,5.3061]
[1739734266183,1.6631,188.5,188.42,13.69354965]
[1739734266881,0.03837469,188.48,188.44,0.03996389]
[1739734269374,5.3056,188.45,188.44,0.03996389]
[1739734271479,0.03837469,188.48,188.44,0.03996389]
[1739734272087,5.34347469,188.48,188.44,0.03996389]
[1739734272288,0.03837469,188.48,188.44,0.03996389]
[1739734272684,5.34327469,188.48,188.44,0.03996389]
[1739734273485,0.03837469,188.48,188.44,0.03996389]
[1739734275187,5.3051,188.47,188.44,0.03996389]
[1739734275888,0.03837469,188.48,188.44,0.03996389]
[1739734276091,5.3054,188.46,188.44,0.03996389]
[1739734276292,0.03837469,188.48,188.44,0.03996389]
[1739734277486,5.34327469,188.48,188.44,0.03996389]
[1739734277890,0.03837469,188.48,188.44,0.03996389]
[1739734278091,5.3051,188.47,188.44,0.03996389]
[1739734279391,0.03837469,188.48,188.44,0.03996389]
[1739734279589,5.3054,188.46,188.44,0.03996389]
[1739734279791,0.03837469,188.48,188.44,0.03996389]
[1739734280592,5.3053,188.47,188.44,0.03996389]
[1739734281392,0.03837469,188.48,188.44,0.03996389]
[1739734281592,5.3054,188.46,188.44,0.03996389]
[1739734282196,5.3051,188.47,188.44,0.03996389]
[1739734283395,0.03837469,188.48,188.44,0.03996389]
[1739734283594,5.3054,188.46,188.44,0.03996389]
[1739734284595,0.03837469,188.48,188.44,0.03996389]
[1739734285091,5.3055,188.46,188.44,0.03996389]
[1739734285394,0.03837469,188.48,188.44,0.03996389]